fUST/lending_fUST_20250423
["ID","MTS","AMOUNT","RATE_DAILY","PERIOD"]
[358752412,1745413844678,-500.0,0.00019178,2]
[358752413,1745413844687,-500.0,0.00019178,2]
[358752414,1745413844697,-500.0,0.00019178,2]
[358752415,1745413844706,-153.13690097,0.00019178,2]
[358752416,1745413844716,-500.0,0.00019178,2]
[358752417,1745413844726,-1041.85,0.00019178,2]
[358752418,1745413844737,-500.0,0.00019178,2]
[358752419,1745413844747,-500.0,0.00019178,2]
[358752420,1745413844756,-547.86919917,0.00019178,2]
[358752421,1745413844769,-500.0,0.00019178,2]
[358752422,1745413844778,-500.0,0.00019178,2]
[358752423,1745413844789,-500.0,0.00019178,2]
[358752424,1745413844798,-500.0,0.00019178,2]
[358752425,1745413844808,-2580.76,0.00019178,2]
[358752426,1745413844818,-2580.76,0.00019178,2]
[358752427,1745413844827,-2580.76,0.00019178,2]
[358752428,1745413844837,-500.0,0.00019178,2]
[358752429,1745413844848,-2580.76,0.00019178,2]
[358752430,1745413844857,-500.0,0.00019178,2]
[358752431,1745413844868,-2580.76,0.00019178,2]
[358752432,1745413844878,-2580.76,0.00019178,2]
[358752433,1745413844888,-2580.76,0.00019178,2]
[358752434,1745413844898,-500.0,0.00019178,2]
[358752435,1745413844908,-2580.76,0.00019178,2]
[358752436,1745413844919,-2580.76,0.00019178,2]
[358752437,1745413844929,-2580.76,0.00019178,2]
[358752438,1745413844939,-2580.76,0.00019178,2]
[358752439,1745413844949,-2580.76,0.00019178,2]
[358752440,1745413844959,-2580.76,0.00019178,2]
[358752441,1745413844970,-2580.76,0.00019178,2]
[358752442,1745413844980,-544.91,0.00019178,2]
[358752443,1745413844990,-500.0,0.00019178,2]
[358752444,1745413845017,-2580.76,0.00019178,2]
[358752445,1745413845039,-500.0,0.00019178,2]
[358752446,1745413845062,-2580.76,0.00019178,2]
[358752447,1745413845086,-500.0,0.00019178,2]
[358752448,1745413845108,-500.0,0.00019178,2]
[358752449,1745413845130,-2580.76,0.00019178,2]
[358752450,1745413845150,-7600.93,0.00019178,2]
[358752451,1745413845167,-2580.76,0.00019178,2]
[358752452,1745413845190,-2580.76,0.00019178,2]
[358752453,1745413845213,-512.0,0.00019178,2]
[358752454,1745413845232,-2580.76,0.00019178,2]
[358752455,1745413845252,-2580.76,0.00019178,2]
[358752456,1745413845271,-2580.76,0.00019178,2]
[358752457,1745413845290,-2580.76,0.00019178,2]
[358752460,1745413845310,-2580.8811171,0.00019178,2]
[358752461,1745413845328,-500.0,0.00019178,2]
[358752462,1745413845348,-523.23,0.00019178,2]
[358752463,1745413845364,-500.0,0.00019178,2]
[358752466,1745413845382,-500.0,0.00019178,2]
[358752468,1745413845400,-500.0,0.00019178,2]
[358752471,1745413845417,-500.0,0.00019178,2]
[358752474,1745413845434,-500.0,0.00019178,2]
[358752475,1745413845456,-500.0,0.00019178,2]
[358752476,1745413845473,-500.0,0.00019178,2]
[358752477,1745413845490,-1427.02,0.00019178,2]
[358752478,1745413845507,-1427.02,0.00019178,2]
[358752480,1745413845526,-500.0,0.00019178,2]
[358752483,1745413845543,-503.17512507,0.00019178,2]
[358752484,1745413845561,-1427.02,0.00019178,2]
[358752486,1745413845579,-1427.02,0.00019178,2]
[358752487,1745413845599,-1427.02,0.00019178,2]
[358752488,1745413845617,-1427.02,0.00019178,2]
[358752489,1745413845634,-1427.02,0.00019178,2]
[358752490,1745413845652,-1427.02,0.00019178,2]
[358752491,1745413845670,-1427.02,0.00019178,2]
[358752492,1745413845687,-1427.02,0.00019178,2]
[358752493,1745413845703,-1427.02,0.00019178,2]
[358752494,1745413845722,-500.0,0.00019178,2]
[358752495,1745413845739,-1427.02,0.00019178,2]
[358752496,1745413845756,-1427.02,0.00019178,2]
[358752497,1745413845772,-1427.02,0.00019178,2]
[358752498,1745413845790,-500.0,0.00019178,2]
[358752500,1745413845808,-562.4,0.00019178,2]
[358752501,1745413845825,-1427.02,0.00019178,2]
[358752502,1745413845844,-500.0,0.00019178,2]
[358752503,1745413845862,-3139.26,0.00019178,2]
[358752504,1745413845880,-1427.02,0.00019178,2]
[358752505,1745413845897,-1427.02,0.00019178,2]
[358752506,1745413845915,-500.0,0.00019178,2]
[358752507,1745413845933,-1427.02,0.00019178,2]
[358752508,1745413845950,-1427.02,0.00019178,2]
[358752509,1745413845970,-1427.02,0.00019178,2]
[358752510,1745413845989,-500.0,0.00019178,2]
[358752511,1745413846007,-1427.02,0.00019178,2]
[358752512,1745413846025,-1427.02,0.00019178,2]
[358752513,1745413846043,-1427.02,0.00019178,2]
[358752515,1745413846060,-1427.12097795,0.00019178,2]
[358752516,1745413846078,-500.0,0.00019178,2]
[358752517,1745413846094,-500.0,0.00019178,2]
[358752518,1745413846104,-500.0,0.00019178,2]
[358752519,1745413846113,-503.38905232,0.00019178,2]
[358752520,1745413846121,-504.23468143,0.00019178,2]
[358752521,1745413846130,-1547.72,0.00019178,2]
[358752522,1745413846140,-500.0,0.00019178,2]
[358752523,1745413846149,-500.0,0.00019178,2]
[358752524,1745413846158,-500.0,0.00019178,2]
[358752525,1745413846433,-500.0,0.00019178,2]
[358752526,1745413846470,-560.65,0.00019178,2]
[358752527,1745413846484,-500.0,0.00019178,2]
[358752528,1745413846494,-500.0,0.00019178,2]
[358752529,1745413846504,-895.63,0.00019178,2]
[358752530,1745413846513,-500.0,0.00019178,2]
[358752531,1745413846522,-500.0,0.00019178,2]
[358752532,1745413846530,-500.0,0.00019178,2]
[358752533,1745413846538,-500.0,0.00019178,2]
[358752534,1745413846548,-734.93,0.00019178,2]
[358752535,1745413846558,-500.0,0.00019178,2]
[358752536,1745413846568,-500.0,0.00019178,2]
[358752537,1745413846578,-1261.54,0.00019178,2]
[358752538,1745413846588,-151.0,0.00019178,2]
[358752539,1745413846599,-500.0,0.00019178,2]
[358752540,1745413846608,-500.0,0.00019178,2]
[358752541,1745413846618,-500.0,0.00019178,2]
[358752542,1745413846627,-151.0,0.00019178,2]
[358752543,1745413846636,-500.0,0.00019178,2]
[358752544,1745413846646,-500.0,0.00019178,2]
[358752545,1745413846655,-151.0,0.00019178,2]
[358752546,1745413846665,-500.0,0.00019178,2]
[358752547,1745413846674,-500.0,0.00019178,2]
[358752548,1745413846683,-2943.26,0.00019178,2]
[358752549,1745413846693,-151.0,0.00019178,2]
[358752550,1745413846702,-527.91,0.00019178,2]
[358752551,1745413846712,-500.0,0.00019178,2]
[358752552,1745413846722,-500.0,0.00019178,2]
[358752553,1745413846732,-500.0,0.00019178,2]
[358752554,1745413846741,-500.0,0.00019178,2]
[358752555,1745413846751,-500.0,0.00019178,2]
[358752556,1745413846762,-508.28875727,0.00019178,2]
[358752557,1745413846771,-500.0,0.00019178,2]
[358752558,1745413846781,-500.0,0.00019178,2]
[358752559,1745413846791,-519.51928914,0.00019178,2]
[358752560,1745413846800,-500.0,0.00019178,2]
[358752561,1745413846811,-500.0,0.00019178,2]
[358752562,1745413846822,-1250.37,0.00019178,2]
[358752563,1745413846831,-500.0,0.00019178,2]
[358752564,1745413846841,-1018.61,0.00019178,2]
[358752565,1745413846851,-504.88616124,0.00019178,2]
[358752566,1745413846860,-502.83751152,0.00019178,2]
[358752567,1745413846869,-500.0,0.00019178,2]
[358752568,1745413846879,-500.0,0.00019178,2]
[358752569,1745413846888,-500.0,0.00019178,2]
[358752570,1745413846898,-562.85708138,0.00019178,2]
[358752571,1745413846907,-500.0,0.00019178,2]
[358752572,1745413846917,-500.0,0.00019178,2]
[358752573,1745413846928,-871.8,0.00019178,2]
[358752574,1745413846938,-500.0,0.00019178,2]
[358752575,1745413846948,-500.0,0.00019178,2]
[358752576,1745413846958,-500.0,0.00019178,2]
[358752577,1745413846969,-500.0,0.00019178,2]
[358752578,1745413846978,-500.0,0.00019178,2]
[358752579,1745413846988,-500.0,0.00019178,2]
[358752580,1745413846998,-500.0,0.00019178,2]
[358752581,1745413847007,-553.49838245,0.00019178,2]
[358752582,1745413847017,-302.79552595,0.00019178,2]
[358752583,1745413847027,-2867.37,0.00019178,2]
[358752584,1745413847036,-880.39,0.00019178,2]
[358752585,1745413847046,-501.33616949,0.00019178,2]
[358752586,1745413847055,-500.0,0.00019178,2]
[358752587,1745413847065,-500.0,0.00019178,2]
[358752588,1745413847075,-500.0,0.00019178,2]
[358752589,1745413847084,-500.0,0.00019178,2]
[358752590,1745413847094,-500.0,0.00019178,2]
[358752591,1745413847103,-1163.44,0.00019178,2]
[358752592,1745413847112,-657.71,0.00019178,2]
[358752593,1745413847122,-500.0,0.00019178,2]
[358752594,1745413847131,-501.42910588,0.00019178,2]
[358752595,1745413847141,-500.0,0.00019178,2]
[358752596,1745413847151,-500.0,0.00019178,2]
[358752597,1745413847161,-5707.32,0.00019178,2]
[358752598,1745413847171,-4350.64,0.00019178,2]
[358752599,1745413847181,-519.5649938,0.00019178,2]
[358752600,1745413847190,-500.0,0.00019178,2]
[358752601,1745413847200,-500.0,0.00019178,2]
[358752602,1745413847210,-500.0,0.00019178,2]
[358752603,1745413847220,-500.0,0.00019178,2]
[358752604,1745413847230,-500.0,0.00019178,2]
[358752605,1745413847240,-500.0,0.00019178,2]
[358752606,1745413847251,-500.0,0.00019178,2]
[358752607,1745413847260,-500.0,0.00019178,2]
[358752608,1745413847270,-569.76889708,0.00019178,2]
[358752609,1745413847279,-500.0,0.00019178,2]
[358752610,1745413847289,-501.64042074,0.00019178,2]
[358752611,1745413847300,-500.0,0.00019178,2]
[358752612,1745413847312,-500.0,0.00019178,2]
[358752613,1745413847322,-500.0,0.00019178,2]
[358752614,1745413847331,-500.0,0.00019178,2]
[358752615,1745413847342,-500.0,0.00019178,2]
[358752616,1745413847352,-1329.96,0.00019178,2]
[358752617,1745413847361,-500.0,0.00019178,2]
[358752618,1745413847371,-758.74,0.00019178,2]
[358752619,1745413847380,-500.0,0.00019178,2]
[358752620,1745413847391,-500.0,0.00019178,2]
[358752621,1745413847401,-501.32225948,0.00019178,2]
[358752622,1745413847411,-500.0,0.00019178,2]
[358752623,1745413847420,-500.0,0.00019178,2]
[358752624,1745413847430,-500.0,0.00019178,2]
[358752625,1745413847439,-500.0,0.00019178,2]
[358752626,1745413847449,-500.0,0.00019178,2]
[358752627,1745413847459,-500.0,0.00019178,2]
[358752628,1745413847470,-2427.53,0.00019178,2]
[358752629,1745413847480,-500.0,0.00019178,2]
[358752630,1745413847490,-500.0,0.00019178,2]
[358752631,1745413847499,-500.0,0.00019178,2]
[358752632,1745413847509,-500.0,0.00019178,2]
[358752633,1745413847518,-592.4,0.00019178,2]
[358752634,1745413847528,-2515.49,0.00019178,2]
[358752635,1745413847538,-500.0,0.00019178,2]
[358752636,1745413847548,-500.0,0.00019178,2]
[358752637,1745413847558,-151.0,0.00019178,2]
[358752638,1745413847568,-151.0,0.00019178,2]
[358752639,1745413847577,-500.0,0.00019178,2]
[358752640,1745413847586,-500.0,0.00019178,2]
[358752641,1745413847596,-1120.07,0.00019178,2]
[358752642,1745413847605,-500.0,0.00019178,2]
[358752643,1745413847615,-500.0,0.00019178,2]
[358752644,1745413847625,-500.0,0.00019178,2]
[358752645,1745413847634,-17347.6,0.00019178,2]
[358752646,1745413847643,-500.0,0.00019178,2]
[358752647,1745413847653,-198.0,0.00019178,2]
[358752648,1745413847664,-500.0,0.00019178,2]
[358752649,1745413847673,-500.0,0.00019178,2]
[358752650,1745413847683,-151.0,0.00019178,2]
[358752651,1745413847693,-500.0,0.00019178,2]
[358752652,1745413847703,-518.69,0.00019178,2]
[358752653,1745413847713,-151.0,0.00019178,2]
[358752654,1745413847723,-500.0,0.00019178,2]
[358752655,1745413847733,-500.0,0.00019178,2]
[358752656,1745413847743,-557.31,0.00019178,2]
[358752657,1745413847753,-504.47681796,0.00019178,2]
[358752658,1745413847763,-500.0,0.00019178,2]
[358752659,1745413847773,-500.0,0.00019178,2]
[358752660,1745413847783,-742.64,0.00019178,2]
[358752661,1745413847793,-501.63901551,0.00019178,2]
[358752662,1745413847803,-504.31613069,0.00019178,2]
[358752663,1745413847812,-500.0,0.00019178,2]
[358752664,1745413847822,-500.0,0.00019178,2]
[358752665,1745413847832,-500.0,0.00019178,2]
[358752666,1745413847842,-500.0,0.00019178,2]
[358752667,1745413847852,-500.0,0.00019178,2]
[358752668,1745413847862,-502.44910173,0.00019178,2]
[358752669,1745413847872,-500.0,0.00019178,2]
[358752670,1745413847882,-820.96,0.00019178,2]
[358752671,1745413847892,-500.0,0.00019178,2]
[358752672,1745413847903,-500.0,0.00019178,2]
[358752673,1745413847913,-13278.14,0.00019178,2]
[358752674,1745413847923,-500.0,0.00019178,2]
[358752675,1745413847934,-167.44816664,0.00019178,2]
[358752676,1745413848382,-332.55183336,0.00019178,2]
[358752677,1745413848392,-791.34,0.00019178,2]
[358752678,1745413848402,-500.0,0.00019178,2]
[358752679,1745413848413,-500.0,0.00019178,2]
[358752680,1745413848423,-531.61678222,0.00019178,2]
[358752681,1745413848432,-500.0,0.00019178,2]
[358752682,1745413848443,-527.7138663,0.00019178,2]
[358752683,1745413848456,-155.32308716,0.00019178,2]
[358752684,1745413849471,-1361.07691284,0.00019178,2]
[358752685,1745413849481,-500.0,0.00019178,2]
[358752686,1745413849491,-500.0,0.00019178,2]
[358752687,1745413849500,-502.87452036,0.00019178,2]
[358752688,1745413849510,-500.0,0.00019178,2]
[358752689,1745413849520,-500.0,0.00019178,2]
[358752690,1745413849530,-500.0,0.00019178,2]
[358752691,1745413849540,-500.0,0.00019178,2]
[358752692,1745413849550,-500.0,0.00019178,2]
[358752693,1745413849560,-500.0,0.00019178,2]
[358752694,1745413849570,-500.0,0.00019178,2]
[358752695,1745413849579,-500.0,0.00019178,2]
[358752696,1745413849588,-819.34,0.00019178,2]
[358752697,1745413849598,-523.7376791,0.00019178,2]
[358752698,1745413849608,-739.7,0.00019178,2]
[358752699,1745413849618,-500.0,0.00019178,2]
[358752700,1745413849627,-500.0,0.00019178,2]
[358752701,1745413849636,-500.0,0.00019178,2]
[358752702,1745413849646,-500.0,0.00019178,2]
[358752703,1745413849656,-500.0,0.00019178,2]
[358752704,1745413849665,-640.4228045,0.00019178,2]
[358752705,1745413849674,-500.0,0.00019178,2]
[358752706,1745413849685,-567.63,0.00019178,2]
[358752707,1745413849695,-500.0,0.00019178,2]
[358752708,1745413849705,-500.0,0.00019178,2]
[358752709,1745413849714,-500.0,0.00019178,2]
[358752710,1745413849724,-500.0,0.00019178,2]
[358752711,1745413849733,-151.0,0.00019178,2]
[358752712,1745413849744,-500.0,0.00019178,2]
[358752713,1745413849753,-152.0,0.00019191,2]
[358752714,1745413849763,-151.0,0.000192,2]
[358752715,1745413849773,-151.0,0.000192,2]
[358752716,1745413849783,-504.92284967,0.00019215,2]
[358752717,1745413849793,-156.587,0.00019233,2]
[358752718,1745413849803,-151.0,0.00019257,2]
[358752719,1745413849813,-657.402295,0.00019257,2]
[358752720,1745413849822,-543.950204,0.00019257,2]
[358752721,1745413849832,-657.402295,0.00019257,2]
[358752722,1745413849842,-543.950204,0.00019257,2]
[358752723,1745413849852,-152.146626,0.00019257,2]
[358752724,1745413849862,-1228.684928,0.00019257,2]
[358752725,1745413849871,-1228.684928,0.00019257,2]
[358752726,1745413849881,-59099.38044933,0.00019257,2]
[358752727,1745413849896,-7642.9991773,0.00019257,2]
[358752728,1745413849910,-13020.92967232,0.00019257,2]
[358752729,1745413864788,-237.10674035,0.00019071,2]
[358752730,1745413870039,-152.0,0.00018804,2]
[358752732,1745413925932,-98.0,0.00018804,2]
[358752733,1745413925957,-160.41908703,0.00019071,2]
[358752735,1745413978374,-221.4918,0.00018804,2]
[358752736,1745413985902,-208.50152978,0.00018804,2]
[358752739,1745414044127,-30.16276499,0.00018804,2]
[358752740,1745414044154,-121.83723501,0.00019176,2]
[358752741,1745414103579,-210.06802862,0.00019176,2]
[358752743,1745414118150,-150.33816418,0.00019078,2]
[358752747,1745414495046,-227.09410596,0.00018987,2]
[358754379,1745414574155,-239.58480325,0.00018245,2]
[358756479,1745414676206,-10.41519675,0.00018245,2]
[358756480,1745414676230,-141.58480325,0.00018245,2]
[358757176,1745414714479,-122.36300875,0.00018245,2]
[358757178,1745414714504,-30.45124243,0.00019078,2]
[358758109,1745414770047,266.0,0.00015,30]
[358758611,1745414800666,-152.81425118,0.00018183,2]
[358759115,1745414908304,1407.48517916,0.000176,2]
[358759153,1745415032080,-832.58373332,0.00018183,2]
[358759154,1745415032091,-155.8616275,0.00019,2]
[358759155,1745415032102,-160.0,0.00019074,2]
[358759156,1745415032112,-201.9691399,0.00019078,2]
[358759157,1745415032122,-201.96913986,0.00019147,2]
[358759158,1745415032132,-152.81425118,0.00019166,2]
[358759159,1745415032143,-151.0,0.00019166,2]
[358759160,1745415032153,-207.4,0.00019166,2]
[358759161,1745415032163,-422.6,0.00019168,3]
[358759162,1745415032176,-300.0,0.00019171,2]
[358759163,1745415032187,-900.0,0.00019171,2]
[358759164,1745415032197,-500.0,0.00019172,2]
[358759165,1745415032208,-495.38806346,0.00019172,2]
[358759166,1745415032218,-210.64428236,0.00019172,2]
[358759167,1745415032228,-500.0,0.00019172,2]
[358759168,1745415032239,-324.43197167,0.00019172,2]
[358759169,1745415032250,-500.0,0.00019173,2]
[358759170,1745415032260,-500.0,0.00019173,2]
[358759171,1745415032271,-500.0,0.00019173,2]
[358759172,1745415032281,-500.0,0.00019173,2]
[358759173,1745415032292,-500.0,0.00019173,2]
[358759174,1745415032302,-241.12492645,0.00019173,2]
[358759175,1745415032313,-500.0,0.00019173,2]
[358759176,1745415032323,-500.0,0.00019173,2]
[358759177,1745415032334,-500.0,0.00019173,2]
[358759178,1745415032344,-369.181503,0.00019177,2]
[358759179,1745415032355,-500.0,0.00019178,2]
[358759180,1745415032366,-298.29596315,0.00019178,2]
[358759181,1745415032376,-500.0,0.00019178,2]
[358759182,1745415032387,-500.0,0.00019178,2]
[358759183,1745415032398,-802.4,0.00019178,2]
[358759184,1745415032409,-500.0,0.00019178,2]
[358759185,1745415032419,-500.0,0.00019178,2]
[358759186,1745415032431,-500.0,0.00019178,2]
[358759187,1745415032442,-500.0,0.00019178,2]
[358759188,1745415032452,-500.0,0.00019178,2]
[358759189,1745415032463,-500.0,0.00019178,2]
[358759190,1745415032473,-500.0,0.00019178,2]
[358759191,1745415032484,-500.0,0.00019178,2]
[358759192,1745415032494,-510.23270101,0.00019178,2]
[358759193,1745415032505,-500.0,0.00019178,2]
[358759194,1745415032515,-500.0,0.00019178,2]
[358759195,1745415032526,-500.0,0.00019178,2]
[358759196,1745415032536,-702.06,0.00019178,2]
[358759197,1745415032546,-1132.37,0.00019178,2]
[358759198,1745415032556,-500.0,0.00019178,2]
[358759199,1745415032567,-442.9605354,0.00019178,2]
[358759200,1745415032577,-500.0,0.00019178,2]
[358759201,1745415032587,-500.0,0.00019178,2]
[358759202,1745415032598,-500.0,0.00019178,2]
[358759203,1745415032609,-500.0,0.00019178,2]
[358759204,1745415032619,-500.0,0.00019178,2]
[358759205,1745415032629,-505.39067021,0.00019178,2]
[358759206,1745415032639,-500.0,0.00019178,2]
[358759207,1745415032648,-500.0,0.00019178,2]
[358759208,1745415032661,-500.0,0.00019178,2]
[358759209,1745415032672,-500.0,0.00019178,2]
[358759210,1745415032686,-505.79042895,0.00019178,2]
[358759211,1745415032697,-500.0,0.00019178,2]
[358759212,1745415032707,-502.16147587,0.00019178,2]
[358759213,1745415032718,-616.59,0.00019178,2]
[358759214,1745415032729,-500.0,0.00019178,2]
[358759215,1745415032740,-1078.99,0.00019178,2]
[358759216,1745415032750,-500.0,0.00019178,2]
[358759217,1745415032760,-750.62,0.00019178,2]
[358759218,1745415032770,-500.0,0.00019178,2]
[358759219,1745415032781,-500.0,0.00019178,2]
[358759220,1745415032791,-500.0,0.00019178,2]
[358759221,1745415032801,-503.24192904,0.00019178,2]
[358759222,1745415032812,-500.0,0.00019178,2]
[358759223,1745415032821,-313.22019787,0.00019178,2]
[358759224,1745415032838,-186.77980213,0.00019178,2]
[358759225,1745415032848,-500.0,0.00019178,2]
[358759226,1745415032857,-505.24837396,0.00019178,2]
[358759227,1745415032867,-500.0,0.00019178,2]
[358759228,1745415032878,-400.6973333,0.00019178,2]
[358759229,1745415032888,-500.0,0.00019178,2]
[358759230,1745415032898,-500.0,0.00019178,2]
[358759231,1745415032909,-501.3554026,0.00019178,2]
[358759232,1745415032919,-500.0,0.00019178,2]
[358759233,1745415032930,-500.0,0.00019178,2]
[358759234,1745415032940,-501.27530045,0.00019178,2]
[358759235,1745415032950,-500.0,0.00019178,2]
[358759236,1745415032961,-500.0,0.00019178,2]
[358759237,1745415032970,-500.0,0.00019178,2]
[358759238,1745415032980,-500.0,0.00019178,2]
[358759239,1745415032991,-510.9,0.00019178,2]
[358759240,1745415033001,-500.0,0.00019178,2]
[358759241,1745415033011,-500.0,0.00019178,2]
[358759242,1745415033021,-500.0,0.00019178,2]
[358759243,1745415033032,-500.0,0.00019178,2]
[358759244,1745415033042,-657.82937632,0.00019178,2]
[358759245,1745415033056,-208.68062368,0.00019178,2]
[358759246,1745415033067,-205.42987382,0.00019178,2]
[358759247,1745415033079,-149.5106715,0.00019178,2]
[358759248,1745415033089,-500.0,0.00019178,2]
[358759249,1745415033099,-287.93106749,0.00019178,2]
[358759254,1745415037978,-212.06893251,0.00019178,2]
[358759255,1745415037988,-720.82,0.00019178,2]
[358759256,1745415037998,-1200.04,0.00019178,2]
[358759257,1745415038008,-500.0,0.00019178,2]
[358759258,1745415038019,-500.0,0.00019178,2]
[358759259,1745415038029,-500.0,0.00019178,2]
[358759260,1745415038038,-500.0,0.00019178,2]
[358759261,1745415038048,-500.0,0.00019178,2]
[358759262,1745415038058,-500.0,0.00019178,2]
[358759263,1745415038068,-500.0,0.00019178,2]
[358759264,1745415038077,-500.0,0.00019178,2]
[358759265,1745415038088,-597.6,0.00019178,2]
[358759268,1745415038097,-500.0,0.00019178,2]
[358759269,1745415038107,-354.01156293,0.00019178,2]
[358759270,1745415038116,-500.0,0.00019178,2]
[358759272,1745415038126,-500.0,0.00019178,2]
[358759274,1745415038135,-500.0,0.00019178,2]
[358759277,1745415038147,-500.0,0.00019178,2]
[358759280,1745415038157,-500.0,0.00019178,2]
[358759281,1745415038167,-500.0,0.00019178,2]
[358759284,1745415038176,-500.0,0.00019178,2]
[358759286,1745415038188,-644.84,0.00019178,2]
[358759289,1745415038198,-500.0,0.00019178,2]
[358759291,1745415038208,-500.0,0.00019178,2]
[358759293,1745415038219,-500.0,0.00019178,2]
[358759295,1745415038229,-500.0,0.00019178,2]
[358759296,1745415038241,-500.0,0.00019178,2]
[358759297,1745415038250,-368.1004897,0.00019178,2]
[358759298,1745415038260,-500.0,0.00019178,2]
[358759299,1745415038270,-500.0,0.00019178,2]
[358759300,1745415038279,-500.0,0.00019178,2]
[358759301,1745415038289,-515.7740399,0.00019178,2]
[358759302,1745415038299,-500.0,0.00019178,2]
[358759303,1745415038309,-500.0,0.00019178,2]
[358759304,1745415038319,-500.0,0.00019178,2]
[358759305,1745415038466,-500.0,0.00019178,2]
[358759306,1745415038481,-431.34663186,0.00019178,2]
[358759307,1745415038491,-517.62,0.00019178,2]
[358759308,1745415038502,-662.93,0.00019178,2]
[358759309,1745415038512,-500.0,0.00019178,2]
[358759310,1745415038522,-500.0,0.00019178,2]
[358759311,1745415038531,-500.0,0.00019178,2]
[358759312,1745415038541,-500.0,0.00019178,2]
[358759313,1745415038550,-500.0,0.00019178,2]
[358759314,1745415038560,-500.0,0.00019178,2]
[358759315,1745415038570,-500.0,0.00019178,2]
[358759316,1745415038580,-500.0,0.00019178,2]
[358759317,1745415038589,-500.0,0.00019178,2]
[358759318,1745415038598,-503.28957082,0.00019178,2]
[358759319,1745415038608,-500.0,0.00019178,2]
[358759320,1745415038617,-500.0,0.00019178,2]
[358759321,1745415038626,-668.22,0.00019178,2]
[358759322,1745415038637,-500.0,0.00019178,2]
[358759323,1745415038647,-500.0,0.00019178,2]
[358759324,1745415038656,-500.0,0.00019178,2]
[358759325,1745415038667,-500.0,0.00019178,2]
[358759326,1745415038678,-832.08,0.00019178,2]
[358759327,1745415038688,-500.0,0.00019178,2]
[358759328,1745415038698,-500.0,0.00019178,2]
[358759329,1745415038709,-500.0,0.00019178,2]
[358759330,1745415038718,-500.0,0.00019178,2]
[358759331,1745415038727,-500.0,0.00019178,2]
[358759332,1745415038738,-500.0,0.00019178,2]
[358759333,1745415038750,-500.0,0.00019178,2]
[358759334,1745415038760,-500.0,0.00019178,2]
[358759335,1745415038769,-500.0,0.00019178,2]
[358759336,1745415038780,-500.0,0.00019178,2]
[358759337,1745415038790,-500.0,0.00019178,2]
[358759338,1745415038799,-1447.72366256,0.00019178,2]
[358759339,1745415038816,-364.22680523,0.00019178,2]
[358759340,1745415038828,-1818.20819582,0.00019178,2]
[358759341,1745415038839,-86.89133639,0.00019178,2]
[358759342,1745415038849,-500.0,0.00019178,2]
[358759343,1745415038859,-500.0,0.00019178,2]
[358759344,1745415038869,-500.0,0.00019178,2]
[358759345,1745415038878,-500.0,0.00019178,2]
[358759346,1745415038888,-500.0,0.00019178,2]
[358759347,1745415038897,-1292.93,0.00019178,2]
[358759348,1745415038907,-486.77870017,0.00019178,2]
[358759349,1745415038917,-500.0,0.00019178,2]
[358759350,1745415038927,-500.0,0.00019178,2]
[358759351,1745415038938,-500.0,0.00019178,2]